[Event "Titled Tuesday Blitz February 22 Late 2022"]
[White "Pinheiro, Iung Alicio de O."]
[Black "Chernomordik, Pavel"]
[WhiteFideId "2104350"]
[BlackFideId "2804530"]
[WhiteElo "2587"]
[BlackElo "2249"]
[Result "1-0"]
[Round "06"]
[TimeControl "180+1"]
[Date "2022.02.23"]
[WhiteClock "0:00:18"]
[BlackClock "0:00:02"]

1. e4 {[%clk 0:02:59]}  g6 {[%clk 0:03:00]} 2. d4 {[%clk 0:02:59]}  Bg7 {[%clk 0:03:00]} 3. Nc3 {[%clk 0:02:59]}  d6 {[%clk 0:03:00]} 4. Be3 {[%clk 0:02:59]}  a6 {[%clk 0:02:59]} 5. h4 {[%clk 0:02:56]}  h6 {[%clk 0:02:57]} 6. f4 {[%clk 0:02:56]}  b5 {[%clk 0:02:56]} 7. h5 {[%clk 0:02:55]}  gxh5 {[%clk 0:02:50]} 8. e5 {[%clk 0:02:26]}  b4 {[%clk 0:02:41]} 9. Ne4 {[%clk 0:02:20]}  Bg4 {[%clk 0:02:34]} 10. Be2 {[%clk 0:02:20]}  Qd7 {[%clk 0:02:34]} 11. Ng3 {[%clk 0:02:17]}  Nc6 {[%clk 0:02:17]} 12. Nxh5 {[%clk 0:02:12]}  Bxh5 {[%clk 0:02:17]} 13. Bxh5 {[%clk 0:02:12]}  d5 {[%clk 0:02:13]} 14. Bg4 {[%clk 0:02:00]}  e6 {[%clk 0:02:12]} 15. Ne2 {[%clk 0:01:56]}  Nge7 {[%clk 0:02:11]} 16. Ng3 {[%clk 0:01:56]}  O-O-O {[%clk 0:02:08]} 17. Qd3 {[%clk 0:01:50]}  Kb7 {[%clk 0:02:06]} 18. f5 {[%clk 0:01:50]}  Bxe5 {[%clk 0:02:00]} 19. dxe5 {[%clk 0:01:44]}  Nxe5 {[%clk 0:02:00]} 20. Qe2 {[%clk 0:01:44]}  Nxg4 {[%clk 0:01:53]} 21. Qxg4 {[%clk 0:01:42]}  Nc6 {[%clk 0:01:52]} 22. fxe6 {[%clk 0:01:26]}  fxe6 {[%clk 0:01:51]} 23. O-O-O {[%clk 0:01:26]}  Rhg8 {[%clk 0:01:51]} 24. Qh3 {[%clk 0:01:25]}  Ne5 {[%clk 0:01:45]} 25. Nh5 {[%clk 0:01:18]}  Qa4 {[%clk 0:01:34]} 26. Kb1 {[%clk 0:01:16]}  Nc4 {[%clk 0:01:31]} 27. Bc1 {[%clk 0:01:14]}  Qc6 {[%clk 0:01:23]} 28. Rhe1 {[%clk 0:00:56]}  Rd6 {[%clk 0:01:06]} 29. Nf4 {[%clk 0:00:47]}  e5 {[%clk 0:01:02]} 30. Nd3 {[%clk 0:00:47]}  e4 {[%clk 0:00:59]} 31. Nxb4 {[%clk 0:00:46]}  Qb5 {[%clk 0:00:57]} 32. a3 {[%clk 0:00:30]}  a5 {[%clk 0:00:55]} 33. Na2 {[%clk 0:00:30]}  Rxg2 {[%clk 0:00:47]} 34. Qxg2 {[%clk 0:00:28]}  Nxa3+ {[%clk 0:00:40]} 35. Ka1 {[%clk 0:00:28]}  Rb6 {[%clk 0:00:39]} 36. Qe2 {[%clk 0:00:26]}  Nc4 {[%clk 0:00:36]} 37. b3 {[%clk 0:00:24]}  a4 {[%clk 0:00:36]} 38. Be3 {[%clk 0:00:24]}  axb3 {[%clk 0:00:33]} 39. cxb3 {[%clk 0:00:25]}  Qxb3 {[%clk 0:00:30]} 40. Rb1 {[%clk 0:00:25]}  Qxe3 {[%clk 0:00:10]} 41. Qxe3 {[%clk 0:00:23]}  Nxe3 {[%clk 0:00:09]} 42. Rxb6+ {[%clk 0:00:23]}  Kxb6 {[%clk 0:00:09]} 43. Rxe3 {[%clk 0:00:24]}  Kc5 {[%clk 0:00:09]} 44. Kb2 {[%clk 0:00:23]}  Kd4 {[%clk 0:00:09]} 45. Rh3 {[%clk 0:00:21]}  c5 {[%clk 0:00:09]} 46. Nc3 {[%clk 0:00:21]}  e3 {[%clk 0:00:05]} 47. Kc2 {[%clk 0:00:21]}  c4 {[%clk 0:00:02]} 48. Rh5 {[%clk 0:00:18]} 1-0


[Site "https://www.chess.com"]

[Event "Titled Tuesday Blitz February 22 Late 2022"]
[White "Ponkratov, Pavel"]
[Black "Yuan, Qingyu"]
[WhiteFideId "4157800"]
[BlackFideId "8609772"]
[WhiteElo "2487"]
[BlackElo "2359"]
[Result "1-0"]
[Round "06"]
[TimeControl "180+1"]
[Date "2022.02.22"]
[WhiteClock "0:00:24"]
[BlackClock "0:00:03"]

1. d4 {[%clk 0:03:00]}  d5 {[%clk 0:02:59]} 2. c4 {[%clk 0:03:01]}  e6 {[%clk 0:03:00]} 3. Nf3 {[%clk 0:03:01]}  Nf6 {[%clk 0:03:00]} 4. Nc3 {[%clk 0:03:01]}  a6 {[%clk 0:03:01]} 5. c5 {[%clk 0:03:00]}  b6 {[%clk 0:03:00]} 6. cxb6 {[%clk 0:03:01]}  c5 {[%clk 0:03:01]} 7. Bf4 {[%clk 0:03:02]}  Bd6 {[%clk 0:03:01]} 8. Bxd6 {[%clk 0:02:54]}  Qxd6 {[%clk 0:03:01]} 9. dxc5 {[%clk 0:02:54]}  Qxc5 {[%clk 0:02:55]} 10. Qd4 {[%clk 0:02:54]}  Qd6 {[%clk 0:02:41]} 11. e4 {[%clk 0:02:51]}  Nc6 {[%clk 0:02:33]} 12. Qa4 {[%clk 0:02:51]}  O-O {[%clk 0:02:18]} 13. Rd1 {[%clk 0:02:40]}  Bd7 {[%clk 0:02:10]} 14. Be2 {[%clk 0:02:33]}  Nb4 {[%clk 0:01:42]} 15. Qa5 {[%clk 0:02:20]}  Nc6 {[%clk 0:01:24]} 16. Qa4 {[%clk 0:02:20]}  Nb4 {[%clk 0:01:24]} 17. Qb3 {[%clk 0:02:19]}  Qxb6 {[%clk 0:01:24]} 18. e5 {[%clk 0:02:18]}  Ng4 {[%clk 0:01:15]} 19. O-O {[%clk 0:02:17]}  Rfb8 {[%clk 0:01:14]} 20. Rd4 {[%clk 0:02:14]}  Nh6 {[%clk 0:01:10]} 21. Rb1 {[%clk 0:02:06]}  Nf5 {[%clk 0:01:09]} 22. Rd2 {[%clk 0:02:06]}  h6 {[%clk 0:01:01]} 23. Qd1 {[%clk 0:02:04]}  Bb5 {[%clk 0:00:58]} 24. Nxb5 {[%clk 0:01:59]}  axb5 {[%clk 0:00:57]} 25. a3 {[%clk 0:01:59]}  Nc6 {[%clk 0:00:57]} 26. Bd3 {[%clk 0:02:00]}  Nfe7 {[%clk 0:00:50]} 27. Rc1 {[%clk 0:01:57]}  b4 {[%clk 0:00:50]} 28. a4 {[%clk 0:01:57]}  b3 {[%clk 0:00:50]} 29. Bb5 {[%clk 0:01:54]}  Na7 {[%clk 0:00:50]} 30. Nd4 {[%clk 0:01:48]}  Rc8 {[%clk 0:00:38]} 31. Rxc8+ {[%clk 0:01:45]}  Rxc8 {[%clk 0:00:37]} 32. Bf1 {[%clk 0:01:45]}  Nac6 {[%clk 0:00:31]} 33. Qxb3 {[%clk 0:01:41]}  Qa5 {[%clk 0:00:23]} 34. Nxc6 {[%clk 0:01:38]}  Nxc6 {[%clk 0:00:19]} 35. Rc2 {[%clk 0:01:37]}  Rb8 {[%clk 0:00:18]} 36. Qa3 {[%clk 0:01:28]}  Nd4 {[%clk 0:00:14]} 37. Rc1 {[%clk 0:01:25]}  Nb3 {[%clk 0:00:12]} 38. Rc3 {[%clk 0:01:21]}  Nd2 {[%clk 0:00:07]} 39. Bd3 {[%clk 0:01:21]}  g6 {[%clk 0:00:06]} 40. h3 {[%clk 0:01:18]}  d4 {[%clk 0:00:05]} 41. Rc5 {[%clk 0:01:13]}  Qb6 {[%clk 0:00:03]} 42. Rb5 {[%clk 0:01:13]}  Qc7 {[%clk 0:00:03]} 43. Qc5 {[%clk 0:01:10]}  Qxc5 {[%clk 0:00:02]} 44. Rxc5 {[%clk 0:01:10]}  Rxb2 {[%clk 0:00:03]} 45. Kh2 {[%clk 0:01:05]}  Ra2 {[%clk 0:00:03]} 46. a5 {[%clk 0:01:05]}  Ra3 {[%clk 0:00:02]} 47. a6 {[%clk 0:00:45]}  Kg7 {[%clk 0:00:03]} 48. Bb5 {[%clk 0:00:44]}  Ra5 {[%clk 0:00:03]} 49. Rc8 {[%clk 0:00:37]}  Rxb5 {[%clk 0:00:03]} 50. a7 {[%clk 0:00:37]}  Ra5 {[%clk 0:00:03]} 51. a8=Q {[%clk 0:00:37]}  Rxa8 {[%clk 0:00:04]} 52. Rxa8 {[%clk 0:00:38]}  Nc4 {[%clk 0:00:03]} 53. Rd8 {[%clk 0:00:38]}  Nxe5 {[%clk 0:00:03]} 54. Rxd4 {[%clk 0:00:38]}  g5 {[%clk 0:00:03]} 55. Kg1 {[%clk 0:00:38]}  Nc6 {[%clk 0:00:03]} 56. Rc4 {[%clk 0:00:37]}  Ne7 {[%clk 0:00:03]} 57. Ra4 {[%clk 0:00:38]}  Nd5 {[%clk 0:00:04]} 58. Kf1 {[%clk 0:00:38]}  Nf4 {[%clk 0:00:03]} 59. Ra8 {[%clk 0:00:38]}  Kg6 {[%clk 0:00:03]} 60. Kg1 {[%clk 0:00:38]}  Kf6 {[%clk 0:00:03]} 61. Kh2 {[%clk 0:00:38]}  Kg6 {[%clk 0:00:04]} 62. g3 {[%clk 0:00:38]}  Nd3 {[%clk 0:00:04]} 63. Kg2 {[%clk 0:00:38]}  Ne5 {[%clk 0:00:04]} 64. Ra5 {[%clk 0:00:37]}  Nd7 {[%clk 0:00:04]} 65. Kf3 {[%clk 0:00:37]}  Nf6 {[%clk 0:00:04]} 66. Ra8 {[%clk 0:00:36]}  Nd5 {[%clk 0:00:04]} 67. Ke4 {[%clk 0:00:36]}  Nf6+ {[%clk 0:00:04]} 68. Ke5 {[%clk 0:00:37]}  Nd7+ {[%clk 0:00:04]} 69. Kd6 {[%clk 0:00:36]}  Nb6 {[%clk 0:00:04]} 70. Rg8+ {[%clk 0:00:35]}  Kf6 {[%clk 0:00:03]} 71. Rh8 {[%clk 0:00:34]}  Kg7 {[%clk 0:00:03]} 72. Rb8 {[%clk 0:00:34]}  Nd5 {[%clk 0:00:03]} 73. Ra8 {[%clk 0:00:30]}  Kf6 {[%clk 0:00:03]} 74. Ra7 {[%clk 0:00:29]}  Nb4 {[%clk 0:00:02]} 75. Kd7 {[%clk 0:00:29]}  Kg6 {[%clk 0:00:01]} 76. Ke8 {[%clk 0:00:28]}  f6 {[%clk 0:00:01]} 77. Kf8 {[%clk 0:00:27]}  h5 {[%clk 0:00:01]} 78. Re7 {[%clk 0:00:25]}  Kf5 {[%clk 0:00:01]} 79. Kg7 {[%clk 0:00:25]}  h4 {[%clk 0:00:01]} 80. g4+ {[%clk 0:00:24]}  Ke5 {[%clk 0:00:02]} 81. Kf7 {[%clk 0:00:24]}  Nd5 {[%clk 0:00:02]} 82. Rxe6+ {[%clk 0:00:24]}  Kf4 {[%clk 0:00:03]} 83. Rd6 {[%clk 0:00:24]}  Nc3 {[%clk 0:00:03]} 84. Rxf6+ {[%clk 0:00:22]}  Ke4 {[%clk 0:00:03]} 85. Rf5 {[%clk 0:00:22]}  Nd5 {[%clk 0:00:02]} 86. Rxd5 {[%clk 0:00:21]}  Kxd5 {[%clk 0:00:02]} 87. Kg6 {[%clk 0:00:22]}  Ke4 {[%clk 0:00:02]} 88. Kxg5 {[%clk 0:00:23]}  Kf3 {[%clk 0:00:03]} 89. Kxh4 {[%clk 0:00:24]} 1-0


[Site "https://www.chess.com"]

[Event "Titled Tuesday Blitz February 22 Late 2022"]
[White "Pultinevicius, Paulius"]
[Black "Kollars, Dmitrij"]
[WhiteFideId "12809390"]
[BlackFideId "12909572"]
[WhiteElo "2413"]
[BlackElo "2584"]
[Result "1/2-1/2"]
[Round "06"]
[TimeControl "180+1"]
[Date "2022.02.22"]
[WhiteClock "0:00:09"]
[BlackClock "0:00:08"]

1. d4 {[%clk 0:03:00]}  Nf6 {[%clk 0:02:59]} 2. c4 {[%clk 0:03:00]}  e6 {[%clk 0:03:00]} 3. Nf3 {[%clk 0:02:58]}  d5 {[%clk 0:02:59]} 4. g3 {[%clk 0:02:57]}  Be7 {[%clk 0:02:57]} 5. Bg2 {[%clk 0:02:57]}  O-O {[%clk 0:02:57]} 6. O-O {[%clk 0:02:54]}  dxc4 {[%clk 0:02:57]} 7. Qa4 {[%clk 0:02:52]}  b6 {[%clk 0:02:54]} 8. Qxc4 {[%clk 0:02:45]}  Bb7 {[%clk 0:02:53]} 9. Nc3 {[%clk 0:02:42]}  Nbd7 {[%clk 0:02:52]} 10. Rd1 {[%clk 0:02:41]}  c5 {[%clk 0:02:47]} 11. Bf4 {[%clk 0:02:30]}  Rc8 {[%clk 0:02:45]} 12. Qa4 {[%clk 0:02:30]}  a6 {[%clk 0:02:41]} 13. Ne5 {[%clk 0:02:28]}  b5 {[%clk 0:02:38]} 14. Qb3 {[%clk 0:02:21]}  Bxg2 {[%clk 0:02:36]} 15. Kxg2 {[%clk 0:02:16]}  Qb6 {[%clk 0:02:18]} 16. Nxd7 {[%clk 0:02:13]}  Nxd7 {[%clk 0:02:19]} 17. d5 {[%clk 0:02:10]}  c4 {[%clk 0:02:19]} 18. Qc2 {[%clk 0:02:09]}  e5 {[%clk 0:01:57]} 19. Be3 {[%clk 0:02:01]}  Bc5 {[%clk 0:01:56]} 20. Bd2 {[%clk 0:01:30]}  f5 {[%clk 0:01:31]} 21. Be1 {[%clk 0:01:16]}  e4 {[%clk 0:01:13]} 22. b3 {[%clk 0:01:06]}  Ne5 {[%clk 0:01:11]} 23. bxc4 {[%clk 0:00:57]}  Nxc4 {[%clk 0:01:12]} 24. Qb3 {[%clk 0:00:53]}  Qg6 {[%clk 0:01:07]} 25. d6 {[%clk 0:00:45]}  f4 {[%clk 0:01:00]} 26. d7 {[%clk 0:00:44]}  f3+ {[%clk 0:00:56]} 27. exf3 {[%clk 0:00:42]}  exf3+ {[%clk 0:00:57]} 28. Kh1 {[%clk 0:00:31]}  Rcd8 {[%clk 0:00:57]} 29. Nxb5 {[%clk 0:00:25]}  axb5 {[%clk 0:00:41]} 30. Qxb5 {[%clk 0:00:26]}  Ne3 {[%clk 0:00:35]} 31. fxe3 {[%clk 0:00:07]}  f2 {[%clk 0:00:35]} 32. Qc4+ {[%clk 0:00:07]}  Kh8 {[%clk 0:00:33]} 33. Ba5 {[%clk 0:00:07]}  Qc6+ {[%clk 0:00:15]} 34. e4 {[%clk 0:00:05]}  Rxd7 {[%clk 0:00:15]} 35. Rxd7 {[%clk 0:00:04]}  Qxd7 {[%clk 0:00:16]} 36. Kg2 {[%clk 0:00:02]}  Qg4 {[%clk 0:00:15]} 37. Qd3 {[%clk 0:00:02]}  h5 {[%clk 0:00:13]} 38. Rf1 {[%clk 0:00:02]}  h4 {[%clk 0:00:13]} 39. h3 {[%clk 0:00:03]}  Qg6 {[%clk 0:00:13]} 40. Bc7 {[%clk 0:00:02]}  Re8 {[%clk 0:00:08]} 41. Qd5 {[%clk 0:00:02]}  Qxe4+ {[%clk 0:00:07]} 42. Qxe4 {[%clk 0:00:02]}  Rxe4 {[%clk 0:00:08]} 43. gxh4 {[%clk 0:00:03]}  Rxh4 {[%clk 0:00:09]} 44. Bg3 {[%clk 0:00:03]}  Ra4 {[%clk 0:00:09]} 45. Bxf2 {[%clk 0:00:03]}  Rxa2 {[%clk 0:00:10]} 46. Kg3 {[%clk 0:00:03]}  Ra3+ {[%clk 0:00:10]} 47. Kg2 {[%clk 0:00:04]}  Bd6 {[%clk 0:00:10]} 48. Re1 {[%clk 0:00:03]}  Ra2 {[%clk 0:00:10]} 49. Re8+ {[%clk 0:00:03]}  Kh7 {[%clk 0:00:10]} 50. Re1 {[%clk 0:00:04]}  Bc5 {[%clk 0:00:09]} 51. Rf1 {[%clk 0:00:05]}  Kg6 {[%clk 0:00:09]} 52. Kf3 {[%clk 0:00:05]}  Ra3+ {[%clk 0:00:09]} 53. Kg4 {[%clk 0:00:03]}  Ra4+ {[%clk 0:00:09]} 54. Kf3 {[%clk 0:00:03]}  Bd6 {[%clk 0:00:09]} 55. Rg1+ {[%clk 0:00:02]}  Kh7 {[%clk 0:00:08]} 56. Rd1 {[%clk 0:00:03]}  Be5 {[%clk 0:00:08]} 57. Rd3 {[%clk 0:00:03]}  Bf6 {[%clk 0:00:08]} 58. Bg3 {[%clk 0:00:04]}  Kg6 {[%clk 0:00:09]} 59. Re3 {[%clk 0:00:04]}  Kf5 {[%clk 0:00:09]} 60. Kg2 {[%clk 0:00:05]}  Ra2+ {[%clk 0:00:08]} 61. Kf3 {[%clk 0:00:05]}  Rc2 {[%clk 0:00:08]} 62. Rd3 {[%clk 0:00:05]}  Rc5 {[%clk 0:00:08]} 63. Rb3 {[%clk 0:00:05]}  Kg6 {[%clk 0:00:08]} 64. Rd3 {[%clk 0:00:05]}  Rf5+ {[%clk 0:00:08]} 65. Kg2 {[%clk 0:00:05]}  Rg5 {[%clk 0:00:09]} 66. Rf3 {[%clk 0:00:06]}  Be5 {[%clk 0:00:08]} 67. Kf2 {[%clk 0:00:07]}  Bd4+ {[%clk 0:00:09]} 68. Kg2 {[%clk 0:00:07]}  Kh5 {[%clk 0:00:09]} 69. Rd3 {[%clk 0:00:06]}  Be5 {[%clk 0:00:09]} 70. Kf2 {[%clk 0:00:07]}  Rf5+ {[%clk 0:00:07]} 71. Rf3 {[%clk 0:00:06]}  Bxg3+ {[%clk 0:00:06]} 72. Kxg3 {[%clk 0:00:06]}  Rxf3+ {[%clk 0:00:05]} 73. Kxf3 {[%clk 0:00:07]}  Kh4 {[%clk 0:00:06]} 74. Kg2 {[%clk 0:00:07]}  g5 {[%clk 0:00:07]} 75. Kh2 {[%clk 0:00:08]}  g4 {[%clk 0:00:08]} 76. hxg4 {[%clk 0:00:09]}  Kxg4 {[%clk 0:00:08]} 1/2-1/2


[Site "https://www.chess.com"]

[Event "Titled Tuesday Blitz February 22 Late 2022"]
[White "Romero Ruscalleda, Josep"]
[Black "Vusatiuk, Vladimir"]
[WhiteFideId "2231859"]
[BlackFideId "14118610"]
[WhiteElo "2375"]
[BlackElo "2157"]
[Result "1-0"]
[Round "06"]
[TimeControl "180+1"]
[Date "2022.02.23"]
[WhiteClock "0:00:20"]
[BlackClock "0:00:01"]

1. e4 {[%clk 0:03:00]}  c5 {[%clk 0:02:59]} 2. c3 {[%clk 0:03:00]}  Nf6 {[%clk 0:02:59]} 3. e5 {[%clk 0:03:01]}  Nd5 {[%clk 0:02:59]} 4. Nf3 {[%clk 0:03:01]}  Nc6 {[%clk 0:02:59]} 5. Bc4 {[%clk 0:03:00]}  Nb6 {[%clk 0:02:58]} 6. Bb3 {[%clk 0:03:01]}  c4 {[%clk 0:02:59]} 7. Bc2 {[%clk 0:03:00]}  d5 {[%clk 0:02:59]} 8. exd6 {[%clk 0:02:59]}  e5 {[%clk 0:03:00]} 9. O-O {[%clk 0:02:57]}  Bxd6 {[%clk 0:03:00]} 10. h3 {[%clk 0:02:56]}  O-O {[%clk 0:02:59]} 11. d3 {[%clk 0:02:51]}  Bf5 {[%clk 0:02:32]} 12. dxc4 {[%clk 0:02:51]}  Bxc2 {[%clk 0:02:32]} 13. Qxc2 {[%clk 0:02:51]}  Nxc4 {[%clk 0:02:31]} 14. Nbd2 {[%clk 0:02:42]}  Nxd2 {[%clk 0:02:27]} 15. Nxd2 {[%clk 0:02:36]}  Qe7 {[%clk 0:02:12]} 16. Nc4 {[%clk 0:02:34]}  Bc7 {[%clk 0:02:11]} 17. b3 {[%clk 0:02:29]}  Rfd8 {[%clk 0:02:06]} 18. Re1 {[%clk 0:02:26]}  f6 {[%clk 0:01:54]} 19. Ba3 {[%clk 0:02:22]}  Qf7 {[%clk 0:01:55]} 20. Qe4 {[%clk 0:02:16]}  Qd5 {[%clk 0:01:47]} 21. Qg4 {[%clk 0:02:08]}  Qd7 {[%clk 0:01:34]} 22. Ne3 {[%clk 0:01:52]}  Qxg4 {[%clk 0:01:31]} 23. hxg4 {[%clk 0:01:52]}  Bb6 {[%clk 0:01:26]} 24. Nc4 {[%clk 0:01:36]}  Bc7 {[%clk 0:01:23]} 25. Rad1 {[%clk 0:01:35]}  Kf7 {[%clk 0:01:18]} 26. Bd6 {[%clk 0:01:28]}  Rac8 {[%clk 0:00:59]} 27. Kf1 {[%clk 0:01:09]}  Ke6 {[%clk 0:00:54]} 28. Bxc7 {[%clk 0:01:08]}  Rxd1 {[%clk 0:00:50]} 29. Rxd1 {[%clk 0:01:06]}  Rxc7 {[%clk 0:00:51]} 30. Ke2 {[%clk 0:00:58]}  Ne7 {[%clk 0:00:49]} 31. Rd6+ {[%clk 0:00:55]}  Kf7 {[%clk 0:00:49]} 32. Kd3 {[%clk 0:00:54]}  Nc6 {[%clk 0:00:40]} 33. Ne3 {[%clk 0:00:54]}  Ne7 {[%clk 0:00:21]} 34. b4 {[%clk 0:00:44]}  e4+ {[%clk 0:00:14]} 35. Kxe4 {[%clk 0:00:39]}  Rxc3 {[%clk 0:00:14]} 36. Rd7 {[%clk 0:00:39]}  Ke6 {[%clk 0:00:14]} 37. Rxb7 {[%clk 0:00:38]}  Ra3 {[%clk 0:00:13]} 38. f4 {[%clk 0:00:35]}  g6 {[%clk 0:00:03]} 39. f5+ {[%clk 0:00:31]}  gxf5+ {[%clk 0:00:04]} 40. gxf5+ {[%clk 0:00:31]}  Kf7 {[%clk 0:00:04]} 41. Nd5 {[%clk 0:00:30]}  Rxa2 {[%clk 0:00:05]} 42. Rxe7+ {[%clk 0:00:29]}  Kf8 {[%clk 0:00:05]} 43. Rxh7 {[%clk 0:00:29]}  Rxg2 {[%clk 0:00:05]} 44. Nxf6 {[%clk 0:00:29]}  Rb2 {[%clk 0:00:05]} 45. Nd5 {[%clk 0:00:28]}  a6 {[%clk 0:00:03]} 46. Ke5 {[%clk 0:00:28]}  Kg8 {[%clk 0:00:02]} 47. Ra7 {[%clk 0:00:27]}  Ra2 {[%clk 0:00:02]} 48. Kf6 {[%clk 0:00:25]}  Rd2 {[%clk 0:00:01]} 49. Ne7+ {[%clk 0:00:24]}  Kh7 {[%clk 0:00:01]} 50. Ng6+ {[%clk 0:00:24]}  Kh6 {[%clk 0:00:01]} 51. Nf8 {[%clk 0:00:21]}  Kh5 {[%clk 0:00:01]} 52. Ne6 {[%clk 0:00:19]}  Rc2 {[%clk 0:00:01]} 53. Rg7 {[%clk 0:00:19]}  Rb2 {[%clk 0:00:01]} 54. Rg5+ {[%clk 0:00:19]}  Kh6 {[%clk 0:00:01]} 55. Rg4 {[%clk 0:00:19]}  Kh5 {[%clk 0:00:01]} 56. Rc4 {[%clk 0:00:19]}  Rb3 {[%clk 0:00:01]} 57. Ng7+ {[%clk 0:00:19]}  Kh6 {[%clk 0:00:01]} 58. Rh4# {[%clk 0:00:20]} 1-0


[Site "https://www.chess.com"]

[Event "Titled Tuesday Blitz February 22 Late 2022"]
[White "Rorrer, Grayson"]
[Black "Svane, Rasmus"]
[WhiteFideId "30944996"]
[BlackFideId "4657101"]
[WhiteElo "2122"]
[BlackElo "2645"]
[Result "0-1"]
[Round "06"]
[TimeControl "180+1"]
[Date "2022.02.22"]
[WhiteClock "0:00:09"]
[BlackClock "0:00:16"]

1. e4 {[%clk 0:03:00]}  c6 {[%clk 0:03:00]} 2. d4 {[%clk 0:03:00]}  d5 {[%clk 0:03:01]} 3. exd5 {[%clk 0:03:01]}  cxd5 {[%clk 0:03:01]} 4. Bd3 {[%clk 0:03:02]}  Nc6 {[%clk 0:03:02]} 5. c3 {[%clk 0:03:02]}  Nf6 {[%clk 0:03:01]} 6. h3 {[%clk 0:03:02]}  e5 {[%clk 0:02:51]} 7. dxe5 {[%clk 0:03:03]}  Nxe5 {[%clk 0:02:52]} 8. Nf3 {[%clk 0:03:03]}  Nxd3+ {[%clk 0:02:52]} 9. Qxd3 {[%clk 0:03:04]}  Bd6 {[%clk 0:02:53]} 10. O-O {[%clk 0:03:02]}  O-O {[%clk 0:02:54]} 11. Bg5 {[%clk 0:03:02]}  h6 {[%clk 0:02:54]} 12. Bxf6 {[%clk 0:03:03]}  Qxf6 {[%clk 0:02:55]} 13. Nbd2 {[%clk 0:03:03]}  Rd8 {[%clk 0:02:50]} 14. Rfe1 {[%clk 0:03:02]}  Be6 {[%clk 0:02:27]} 15. Rad1 {[%clk 0:02:49]}  a6 {[%clk 0:02:26]} 16. Nd4 {[%clk 0:02:42]}  Bd7 {[%clk 0:02:13]} 17. Nf1 {[%clk 0:02:27]}  Ba4 {[%clk 0:01:59]} 18. Rd2 {[%clk 0:02:19]}  Re8 {[%clk 0:01:56]} 19. Rde2 {[%clk 0:02:08]}  Rxe2 {[%clk 0:01:53]} 20. Rxe2 {[%clk 0:02:09]}  Rd8 {[%clk 0:01:28]} 21. Qf5 {[%clk 0:01:58]}  Qxf5 {[%clk 0:01:25]} 22. Nxf5 {[%clk 0:01:58]}  Bc5 {[%clk 0:01:22]} 23. Rd2 {[%clk 0:01:57]}  b6 {[%clk 0:00:55]} 24. N1e3 {[%clk 0:01:47]}  Bc6 {[%clk 0:00:55]} 25. Nd4 {[%clk 0:01:29]}  Bb7 {[%clk 0:00:55]} 26. Kf1 {[%clk 0:01:26]}  g6 {[%clk 0:00:55]} 27. Ke1 {[%clk 0:01:25]}  h5 {[%clk 0:00:55]} 28. Ndc2 {[%clk 0:01:16]}  Kg7 {[%clk 0:00:47]} 29. a3 {[%clk 0:00:50]}  a5 {[%clk 0:00:42]} 30. b4 {[%clk 0:00:44]}  Be7 {[%clk 0:00:41]} 31. c4 {[%clk 0:00:40]}  dxc4 {[%clk 0:00:38]} 32. Nxc4 {[%clk 0:00:20]}  Rxd2 {[%clk 0:00:35]} 33. Kxd2 {[%clk 0:00:18]}  Bxg2 {[%clk 0:00:35]} 34. Nxb6 {[%clk 0:00:19]}  axb4 {[%clk 0:00:34]} 35. Nxb4 {[%clk 0:00:15]}  Bxh3 {[%clk 0:00:34]} 36. N6d5 {[%clk 0:00:16]}  Bc5 {[%clk 0:00:33]} 37. a4 {[%clk 0:00:16]}  h4 {[%clk 0:00:28]} 38. Nd3 {[%clk 0:00:15]}  Ba7 {[%clk 0:00:21]} 39. Ne3 {[%clk 0:00:10]}  Bd7 {[%clk 0:00:18]} 40. a5 {[%clk 0:00:09]}  h3 {[%clk 0:00:18]} 41. Nf1 {[%clk 0:00:09]}  Bb5 {[%clk 0:00:16]} 0-1


[Site "https://www.chess.com"]

[Event "Titled Tuesday Blitz February 22 Late 2022"]
[White "Sanchez Alvares, Kelvin Antonio"]
[Black "Hoffmann, Asa"]
[WhiteFideId "3906680"]
[BlackFideId "2001470"]
[WhiteElo "2193"]
[BlackElo "2117"]
[Result "0-1"]
[Round "06"]
[TimeControl "180+1"]
[Date "2022.02.23"]
[WhiteClock "0:00:11"]
[BlackClock "0:00:45"]

1. d4 {[%clk 0:03:00]}  Nf6 {[%clk 0:02:58]} 2. c4 {[%clk 0:02:55]}  c5 {[%clk 0:02:55]} 3. d5 {[%clk 0:02:54]}  e5 {[%clk 0:02:49]} 4. Nc3 {[%clk 0:02:53]}  d6 {[%clk 0:02:48]} 5. e4 {[%clk 0:02:52]}  Be7 {[%clk 0:02:44]} 6. h3 {[%clk 0:02:49]}  Nbd7 {[%clk 0:02:42]} 7. Bd3 {[%clk 0:02:49]}  Nf8 {[%clk 0:02:38]} 8. Nge2 {[%clk 0:02:48]}  Ng6 {[%clk 0:02:38]} 9. g3 {[%clk 0:02:48]}  O-O {[%clk 0:02:35]} 10. Be3 {[%clk 0:02:48]}  a6 {[%clk 0:02:34]} 11. a4 {[%clk 0:02:44]}  b6 {[%clk 0:02:34]} 12. Qc2 {[%clk 0:02:40]}  Ne8 {[%clk 0:02:31]} 13. f4 {[%clk 0:02:38]}  exf4 {[%clk 0:02:27]} 14. gxf4 {[%clk 0:02:37]}  Bh4+ {[%clk 0:02:26]} 15. Kd2 {[%clk 0:02:37]}  Qe7 {[%clk 0:02:18]} 16. Rag1 {[%clk 0:02:31]}  Bd7 {[%clk 0:02:14]} 17. Kc1 {[%clk 0:02:07]}  f5 {[%clk 0:02:00]} 18. Bd2 {[%clk 0:01:52]}  fxe4 {[%clk 0:01:58]} 19. Bxe4 {[%clk 0:01:51]}  Nf6 {[%clk 0:01:54]} 20. Bd3 {[%clk 0:01:21]}  Rae8 {[%clk 0:01:43]} 21. Kb1 {[%clk 0:01:21]}  Bf2 {[%clk 0:01:42]} 22. Rg2 {[%clk 0:01:19]}  Be3 {[%clk 0:01:42]} 23. Bxg6 {[%clk 0:01:12]}  hxg6 {[%clk 0:01:40]} 24. Bxe3 {[%clk 0:01:09]}  Qxe3 {[%clk 0:01:37]} 25. Qxg6 {[%clk 0:01:09]}  Rf7 {[%clk 0:01:34]} 26. Ka2 {[%clk 0:01:05]}  b5 {[%clk 0:01:33]} 27. Rg3 {[%clk 0:00:59]}  Qe7 {[%clk 0:01:29]} 28. cxb5 {[%clk 0:00:58]}  axb5 {[%clk 0:01:27]} 29. axb5 {[%clk 0:00:58]}  Ra8+ {[%clk 0:01:18]} 30. Kb3 {[%clk 0:00:57]}  c4+ {[%clk 0:01:17]} 31. Kxc4 {[%clk 0:00:53]}  Be8 {[%clk 0:01:16]} 32. Kb3 {[%clk 0:00:43]}  Qb7 {[%clk 0:01:10]} 33. Qd3 {[%clk 0:00:41]}  Rb8 {[%clk 0:01:06]} 34. Rd1 {[%clk 0:00:23]}  Nd7 {[%clk 0:01:06]} 35. Kc2 {[%clk 0:00:20]}  Nc5 {[%clk 0:01:05]} 36. Qc4 {[%clk 0:00:18]}  Re7 {[%clk 0:01:01]} 37. Nd4 {[%clk 0:00:17]}  Ne4 {[%clk 0:00:54]} 38. Nc6 {[%clk 0:00:16]}  Nxg3 {[%clk 0:00:47]} 39. Rg1 {[%clk 0:00:13]}  Nf5 {[%clk 0:00:45]} 40. Rg5 {[%clk 0:00:11]}  Ne3+ {[%clk 0:00:45]} 0-1


[Site "https://www.chess.com"]

[Event "Titled Tuesday Blitz February 22 Late 2022"]
[White "Savchenko, Boris"]
[Black "Hasangatin, Ramil"]
[WhiteFideId "4147332"]
[BlackFideId "4122160"]
[WhiteElo "2512"]
[BlackElo "2375"]
[Result "1-0"]
[Round "06"]
[TimeControl "180+1"]
[Date "2022.02.22"]
[WhiteClock "0:01:07"]
[BlackClock "0:01:04"]

1. e4 {[%clk 0:02:56]}  d5 {[%clk 0:03:00]} 2. exd5 {[%clk 0:02:56]}  Qxd5 {[%clk 0:03:01]} 3. Nc3 {[%clk 0:02:55]}  Qd6 {[%clk 0:03:01]} 4. d4 {[%clk 0:02:50]}  Nf6 {[%clk 0:03:01]} 5. Nf3 {[%clk 0:02:49]}  c6 {[%clk 0:03:02]} 6. Be3 {[%clk 0:02:43]}  Bg4 {[%clk 0:03:01]} 7. Bc4 {[%clk 0:02:40]}  Nbd7 {[%clk 0:02:59]} 8. Qd2 {[%clk 0:02:39]}  Bxf3 {[%clk 0:02:59]} 9. gxf3 {[%clk 0:02:39]}  e6 {[%clk 0:02:59]} 10. O-O-O {[%clk 0:02:39]}  Qb4 {[%clk 0:02:57]} 11. Bb3 {[%clk 0:02:38]}  Qa5 {[%clk 0:02:58]} 12. Qe2 {[%clk 0:02:33]}  Be7 {[%clk 0:02:49]} 13. h4 {[%clk 0:02:31]}  g6 {[%clk 0:02:48]} 14. Bg5 {[%clk 0:02:23]}  Qd8 {[%clk 0:02:25]} 15. Kb1 {[%clk 0:02:13]}  O-O {[%clk 0:02:09]} 16. f4 {[%clk 0:02:00]}  Nb6 {[%clk 0:02:00]} 17. h5 {[%clk 0:01:55]}  Nbd5 {[%clk 0:01:32]} 18. hxg6 {[%clk 0:01:52]}  hxg6 {[%clk 0:01:32]} 19. Qe5 {[%clk 0:01:47]}  Bd6 {[%clk 0:01:21]} 20. Bxf6 {[%clk 0:01:07]}  Nxf6 {[%clk 0:01:04]} 21. Qg5 {[%clk 0:01:07]} 1-0


[Site "https://www.chess.com"]